bitfinex-derivatives/quotes_SOLF0:USTF0_20260311
["timestamp","ask_amount","ask_price","bid_price","bid_amount"]
[1773215202830,1.03079679,85.369,85.324,3.92864261]
[1773215204731,1.03079679,85.369,85.33,3.92864261]
[1773215204933,2.6375,85.37,85.331,3.92864261]
[1773215205430,2.6375,85.37,85.335,3.92864261]
[1773215212634,2.6375,85.37,85.338,3.80931207]
[1773215214843,1.04536765,85.379,85.34,3.80931207]
[1773215216441,1.04536765,85.379,85.344,14.35331207]
[1773215217047,2.6375,85.38,85.345,3.80931207]
[1773215217551,1.01846065,85.39,85.345,3.80931207]
[1773215217743,1.01846065,85.389,85.345,3.80931207]
[1773215217944,2.6375,85.38,85.345,3.80931207]
[1773215221352,1.09042939,85.379,85.345,3.80931207]
[1773215221750,2.6375,85.37,85.337,3.80931207]
[1773215222451,1.09037064,85.41,85.36,2.6375]
[1773215222649,1.09037064,85.409,85.361,3.80931207]
[1773215224051,1.09037064,85.399,85.361,3.80931207]
[1773215224250,1.09037064,85.399,85.351,3.80931207]
[1773215224842,1.09037064,85.399,85.361,3.80931207]
[1773215225449,0.65251252,85.409,85.361,3.80931207]
[1773215227454,0.65251252,85.409,85.368,3.80931207]
[1773215227653,0.65677506,85.421,85.37,2.63218369]
[1773215227850,2.63218369,85.42,85.381,3.80931207]
[1773215228754,2.63218369,85.43,85.381,3.80931207]
[1773215229457,2.63218369,85.43,85.391,3.80931207]
[1773215229752,2.63218369,85.44,85.391,3.80931207]
[1773215229955,3.20121645,85.44,85.393,3.80931207]
[1773215230656,0.56386303,85.429,85.381,3.80931207]
[1773215232857,2.63218369,85.42,85.381,3.80931207]
[1773215233053,3.263759,85.42,85.381,3.80931207]
[1773215237160,3.263759,85.42,85.332,11.8]
[1773215237161,2.63218369,85.4,85.364,3.80931207]
[1773215237766,0.6144127,85.389,85.352,3.80931207]
[1773215239671,2.63218369,85.39,85.352,3.80931207]
[1773215243675,2.63218369,85.38,85.352,3.80931207]
[1773215244075,2.63218369,85.39,85.352,3.80931207]
[1773215245782,3.24094869,85.38,85.34,4.04609098]
[1773215246176,2.63218369,85.37,85.34,4.04609098]
[1773215249875,2.63218369,85.37,85.326,4.04609098]
[1773215250181,2.63218369,85.37,85.33,2.63218369]
[1773215250378,2.63218369,85.39,85.343,4.04609098]
[1773215251380,2.63218369,85.39,85.352,4.04609098]
[1773215252483,2.63218369,85.39,85.354,4.04609098]
[1773215253177,0.77179897,85.394,85.354,4.04609098]
[1773215253785,2.63218369,85.39,85.354,4.04609098]
[1773215254883,2.63218369,85.38,85.354,4.04609098]
[1773215255186,2.63218369,85.38,85.309,21.098]
[1773215255187,2.63218369,85.37,85.342,14.59109098]
[1773215255484,2.63218369,85.37,85.343,4.04609098]
[1773215256383,2.63218369,85.38,85.343,4.04609098]
[1773215258988,2.63218369,85.37,85.343,4.04609098]
[1773215259379,2.63218369,85.38,85.343,4.04609098]
[1773215262992,2.63218369,85.38,85.346,3.90677087]
[1773215264491,2.63218369,85.38,85.348,10.544]
[1773215265295,2.63218369,85.38,85.349,3.90677087]
[1773215265486,11.32767225,85.389,85.352,3.90677087]
[1773215265690,0.78867225,85.388,85.352,3.90677087]
[1773215266193,2.63218369,85.38,85.352,3.90677087]
[1773215266990,2.63218369,85.36,85.323,3.90677087]
[1773215267191,21.073,85.412,85.323,3.90677087]
[1773215267192,2.63218369,85.35,85.323,3.90677087]
[1773215268192,0.78855757,85.359,85.323,3.90677087]
[1773215269291,0.78855757,85.359,85.326,10.547]
[1773215271388,0.78855757,85.359,85.323,3.90677087]
[1773215271586,2.63218369,85.35,85.323,3.90677087]
[1773215274700,2.63218369,85.34,85.311,4.05104713]
[1773215278398,2.63218369,85.35,85.311,4.05104713]
[1773215278603,2.63218369,85.36,85.311,4.05104713]
[1773215278801,2.63218369,85.36,85.276,11.8]
[1773215278802,2.63218369,85.35,85.313,4.05104713]
[1773215279002,2.63218369,85.34,85.313,4.05104713]
[1773215280897,2.63218369,85.34,85.304,10.549]
[1773215281099,2.63218369,85.33,85.301,4.05104713]
[1773215282106,2.63218369,85.33,85.302,10.55]
[1773215282307,2.63218369,85.33,85.302,14.60104713]
[1773215283498,2.63218369,85.33,85.28,2.63218369]
[1773215283704,2.63218369,85.31,85.281,4.05104713]
[1773215283902,0.83997559,85.327,85.281,4.05104713]
[1773215284100,2.63218369,85.32,85.281,4.05104713]
[1773215284305,2.63218369,85.32,85.284,4.05104713]
[1773215285511,2.63218369,85.32,85.288,4.05104713]
[1773215286210,10.545,85.343,85.255,11.8]
[1773215286211,2.63218369,85.33,85.293,4.05104713]
[1773215286607,2.63218369,85.32,85.296,4.05104713]
[1773215286812,2.63218369,85.33,85.296,4.05104713]
[1773215287310,2.63218369,85.33,85.299,10.55]
[1773215287606,2.63689703,85.33,85.3,4.05104713]
[1773215289912,2.63689703,85.33,85.245,21.114]
[1773215289913,2.63689703,85.37,85.321,4.05104713]
[1773215290103,2.63689703,85.37,85.331,4.05104713]
[1773215290306,2.63689703,85.38,85.341,4.05104713]
[1773215291706,2.63689703,85.37,85.341,4.05104713]
[1773215291909,3.49584327,85.38,85.341,4.05104713]
[1773215294421,2.63689703,85.38,85.341,4.05104713]
[1773215295306,2.63689703,85.38,85.342,10.545]
[1773215295512,2.63689703,85.38,85.341,4.05104713]
[1773215296514,0.86676359,85.392,85.341,4.05104713]
[1773215296712,2.63689703,85.37,85.341,4.05104713]
[1773215296916,2.63689703,85.37,85.331,4.05104713]
[1773215298613,0.86637545,85.379,85.333,4.05104713]
[1773215299314,0.86637545,85.379,85.335,4.05104713]
[1773215301021,0.91420662,85.389,85.341,3.87936274]
[1773215301817,2.63689703,85.38,85.341,3.87936274]
[1773215302719,0.91420662,85.389,85.341,14.42436274]
[1773215302920,2.63689703,85.38,85.342,3.87936274]
[1773215305119,2.63689703,85.38,85.343,10.545]
[1773215305320,2.63689703,85.38,85.344,3.87936274]
[1773215307526,0.90651778,85.404,85.344,3.87936274]
[1773215307728,3.54341481,85.399,85.359,3.87936274]
[1773215308319,3.54341481,85.399,85.361,10.542]
[1773215309624,3.54341481,85.399,85.318,11.8]
[1773215309625,3.55212413,85.389,85.346,3.87936274]
[1773215310221,3.55212413,85.399,85.351,3.87936274]
[1773215310821,3.55212413,85.399,85.36,6.51625977]
[1773215311031,3.55212413,85.399,85.361,3.87936274]
[1773215312530,3.55212413,85.399,85.362,10.542]
[1773215313627,3.55212413,85.399,85.362,14.42136274]
[1773215313832,2.63689703,85.39,85.362,3.87936274]
[1773215316234,3.55212413,85.399,85.362,3.87936274]
[1773215317032,2.63689703,85.39,85.362,3.87936274]
[1773215322033,2.63689703,85.39,85.348,4.04595862]
[1773215322238,2.63689703,85.39,85.35,4.04595862]
[1773215324233,3.59479086,85.397,85.351,4.04595862]
[1773215324430,2.63689703,85.4,85.356,4.04595862]
[1773215324636,6.21188913,85.4,85.356,4.04595862]
[1773215325328,6.21188913,85.4,85.35,2.63689703]
[1773215325329,6.21188913,85.4,85.358,4.04595862]
[1773215325530,2.63689703,85.4,85.361,4.04595862]
[1773215326038,3.5749921,85.41,85.363,4.04595862]
[1773215326039,2.63689703,85.41,85.363,4.04595862]
[1773215327336,2.63689703,85.41,85.367,4.04595862]
[1773215327537,2.63689703,85.42,85.371,4.04595862]
[1773215327736,3.57553879,85.419,85.371,4.04595862]
[1773215328039,3.57553879,85.409,85.371,4.04595862]
[1773215328940,11.8,85.442,85.36,2.63689703]
[1773215328941,2.63689703,85.39,85.36,4.04595862]
[1773215330541,6.0886465,85.39,85.349,3.67484371]
[1773215332939,6.0886465,85.39,85.356,3.67484371]
[1773215333342,6.07812954,85.38,85.341,3.67484371]
[1773215333539,2.63689703,85.38,85.343,3.67484371]
[1773215333737,2.63689703,85.39,85.343,3.67484371]
[1773215334440,2.63689703,85.39,85.347,3.67484371]
[1773215334638,2.63689703,85.38,85.347,3.67484371]
[1773215334837,2.63689703,85.38,85.33,2.63689703]
[1773215334838,3.429533,85.379,85.335,3.67484371]
[1773215335241,2.63689703,85.37,85.335,3.67484371]
[1773215335544,3.429533,85.379,85.3,11.8]
[1773215335545,2.63689703,85.38,85.341,3.67484371]
[1773215336140,2.63689703,85.38,85.343,3.67484371]
[1773215336341,2.63689703,85.39,85.343,3.67484371]
[1773215337048,2.63689703,85.39,85.3,11.8]
[1773215337049,2.63689703,85.4,85.351,3.67484371]
[1773215337246,2.63689703,85.39,85.351,3.67484371]
[1773215338441,2.63689703,85.39,85.355,3.67484371]
[1773215340642,2.63689703,85.39,85.357,3.67484371]
[1773215341449,2.63689703,85.4,85.357,3.67484371]
[1773215341949,6.11502492,85.4,85.357,3.67484371]
[1773215342148,2.63689703,85.39,85.357,3.67484371]
[1773215343542,3.48047386,85.389,85.346,10.544]
[1773215343743,3.48047386,85.389,85.347,3.67484371]
[1773215344544,3.48047386,85.389,85.349,3.67484371]
[1773215345142,11.8,85.428,85.307,21.099]
[1773215345143,2.63689703,85.37,85.338,3.67484371]
[1773215347152,3.48028339,85.379,85.341,3.67484371]
[1773215347349,2.63689703,85.39,85.341,3.67484371]
[1773215347648,2.63323546,85.39,85.341,3.67484371]
[1773215348448,2.63323546,85.39,85.346,3.67484371]
[1773215348948,2.63323546,85.39,85.348,3.67484371]
[1773215349349,2.63323546,85.39,85.35,2.63323546]
[1773215349546,2.63323546,85.4,85.36,2.63323546]
[1773215349752,14.30735271,85.432,85.314,11.8]
[1773215349753,2.63323546,85.39,85.361,3.67484371]
[1773215350452,2.63323546,85.39,85.345,3.67484371]
[1773215350649,3.48507793,85.389,85.345,3.67484371]
[1773215351653,2.63323546,85.4,85.353,3.67484371]
[1773215353349,2.63323546,85.4,85.363,10.542]
[1773215353751,2.63323546,85.4,85.353,3.67484371]
[1773215355352,2.63323546,85.4,85.355,10.543]
[1773215355553,2.63323546,85.4,85.356,3.67484371]
[1773215356150,8.96249839,85.399,85.356,3.67484371]
[1773215356356,6.1650549,85.4,85.356,3.67484371]
[1773215356752,6.12546926,85.4,85.36,3.67484371]
[1773215356951,3.4922338,85.399,85.36,3.67484371]
[1773215358455,6.12507107,85.41,85.363,3.67484371]
[1773215359558,6.12507107,85.41,85.365,3.67484371]
[1773215360157,6.12507107,85.41,85.326,21.094]
[1773215360158,2.63323546,85.42,85.377,4.06985595]
[1773215360558,6.11681072,85.42,85.377,4.06985595]
[1773215360961,6.11681072,85.42,85.379,4.06985595]
[1773215364662,2.63323546,85.41,85.379,4.06985595]
[1773215365063,2.63323546,85.39,85.351,4.06985595]
[1773215366364,2.63323546,85.39,85.353,10.543]
[1773215366559,2.63323546,85.39,85.354,4.06985595]
[1773215367459,2.63323546,85.39,85.356,10.543]
[1773215368161,2.63323546,85.39,85.356,14.61285595]
[1773215369263,2.63323546,85.39,85.362,10.542]
[1773215369469,2.63323546,85.39,85.363,4.06985595]
[1773215370964,2.63323546,85.39,85.362,10.542]
[1773215375269,3.49315439,85.399,85.362,14.61185595]
[1773215377269,2.63323546,85.39,85.362,4.06985595]
[1773215377666,3.49315439,85.399,85.362,4.06985595]
[1773215381366,3.50546785,85.389,85.354,3.81653155]
[1773215400491,3.48387836,85.379,85.344,10.545]
[1773215400790,3.48387836,85.379,85.345,3.68066683]
[1773215400989,3.48387836,85.389,85.345,3.68066683]
[1773215401590,10.77913672,85.41,85.321,11.8]
[1773215401591,3.48387836,85.4,85.351,3.68066683]
[1773215401790,3.48387836,85.4,85.361,3.68066683]
[1773215403386,3.48387836,85.4,85.361,14.22266683]
[1773215403591,3.48387836,85.4,85.362,3.68066683]
[1773215404493,3.48387836,85.4,85.365,3.68066683]
[1773215405694,3.48387836,85.4,85.368,10.542]
[1773215406090,3.48387836,85.4,85.368,14.22266683]
[1773215406695,3.48387836,85.4,85.368,3.68066683]
[1773215412494,6.11597073,85.4,85.368,3.68066683]
[1773215415000,2.63209237,85.41,85.37,3.68066683]
[1773215415195,8.99965928,85.409,85.37,3.68066683]
[1773215415398,5.87379766,85.41,85.37,3.68066683]
[1773215415601,3.24170529,85.429,85.381,3.68066683]
[1773215415798,3.24170529,85.429,85.324,21.094]
[1773215415799,3.24170529,85.439,85.391,3.68066683]
[1773215415990,3.24170529,85.439,85.401,3.68066683]
[1773215420005,3.26113567,85.449,85.403,3.82973141]
[1773215420500,3.26113567,85.449,85.406,3.82973141]
[1773215421403,3.26897874,85.463,85.412,3.82973141]
[1773215421595,2.63209237,85.47,85.421,3.82973141]
[1773215422605,2.63209237,85.47,85.424,3.82973141]
[1773215424110,2.63209237,85.47,85.391,11.8]
[1773215424111,3.26897874,85.474,85.431,3.82973141]
[1773215425203,2.63209237,85.47,85.431,3.82973141]
[1773215425398,2.63209237,85.47,85.433,3.82973141]
[1773215426204,3.26897874,85.474,85.433,3.82973141]
[1773215426409,2.63209237,85.48,85.435,3.82973141]
[1773215427109,5.914226,85.48,85.435,3.82973141]
[1773215427310,3.28213363,85.479,85.435,3.82973141]
[1773215427505,3.28213363,85.479,85.437,3.82973141]
[1773215427702,3.28213363,85.479,85.441,3.82973141]
[1773215429504,3.28213363,85.479,85.442,3.82973141]
[1773215429901,5.9065556,85.47,85.424,3.82973141]
[1773215430507,2.63209237,85.48,85.433,3.82973141]
[1773215430813,3.27661992,85.479,85.433,3.82973141]
[1773215432209,3.27661992,85.479,85.436,3.82973141]
[1773215433810,3.27661992,85.479,85.44,3.82973141]
[1773215439119,3.27661992,85.479,85.441,3.97040059]
[1773215441218,2.63209237,85.49,85.441,3.97040059]
[1773215441422,2.63209237,85.49,85.451,3.97040059]
[1773215441818,3.30261277,85.499,85.451,3.97040059]
[1773215442319,3.30261277,85.499,85.452,10.531]
[1773215442520,3.30261277,85.499,85.453,3.97040059]
[1773215442721,2.63209237,85.49,85.453,3.97040059]
[1773215443223,3.30261277,85.499,85.455,3.97040059]
[1773215444323,3.30261277,85.499,85.459,10.53]
[1773215444524,3.30261277,85.499,85.46,3.97040059]
[1773215445917,2.63209237,85.52,85.471,3.97040059]
[1773215446723,5.94051091,85.52,85.471,3.97040059]
[1773215446927,3.30841854,85.519,85.473,3.97040059]
[1773215447123,2.63209237,85.51,85.473,3.97040059]
[1773215447927,2.63209237,85.51,85.475,3.97040059]
[1773215449127,3.3232528,85.53,85.477,3.97040059]
[1773215449329,3.3232528,85.529,85.477,3.97040059]
[1773215449628,3.3232528,85.529,85.481,4.00214635]
[1773215450125,2.63209237,85.52,85.481,4.00214635]
[1773215452225,10.522,85.528,85.452,11.78]
[1773215452226,3.3232528,85.529,85.483,4.00214635]
[1773215454318,3.3232528,85.529,85.485,4.00214635]
[1773215454524,2.63209237,85.51,85.47,2.63209237]
[1773215454724,3.25457797,85.519,85.47,2.63209237]
[1773215454725,3.25457797,85.519,85.471,4.00214635]
[1773215455326,3.25457797,85.519,85.476,4.00214635]
[1773215456533,3.25457797,85.519,85.48,10.528]
[1773215457233,3.25457797,85.519,85.48,14.53014635]
[1773215457629,3.26313436,85.508,85.461,4.00214635]
[1773215457933,2.63209237,85.5,85.461,4.00214635]
[1773215458133,2.63209237,85.5,85.471,4.00214635]
[1773215458631,3.26313436,85.508,85.471,4.00214635]
[1773215459327,2.63209237,85.51,85.471,4.00214635]
[1773215459533,2.63209237,85.51,85.474,4.00214635]
[1773215459730,2.63209237,85.52,85.474,4.00214635]
[1773215460233,2.63209237,85.52,85.484,4.00214635]
[1773215460435,2.63209237,85.53,85.491,4.00214635]
[1773215460630,2.63209237,85.52,85.491,4.00214635]
[1773215460831,2.63209237,85.52,85.492,10.526]
[1773215461026,3.28043213,85.529,85.493,4.00214635]
[1773215461538,2.63209237,85.5,85.467,4.00214635]
[1773215462035,3.28043213,85.509,85.467,4.00214635]
[1773215462641,3.24045458,85.499,85.454,4.00214635]
[1773215462835,2.63209237,85.48,85.441,4.00214635]
[1773215463035,2.63209237,85.46,85.441,4.00214635]
[1773215464140,9.237e-05,85.46,85.441,4.00214635]
[1773215464336,3.24045458,85.479,85.441,4.00214635]
[1773215464337,2.63209237,85.47,85.441,4.00214635]
[1773215467137,10.77913672,85.52,85.394,11.78]
[1773215467138,3.2440374,85.509,85.443,4.00214635]
[1773215467329,2.63209237,85.49,85.443,4.00214635]
[1773215467530,9.237e-05,85.5,85.471,4.00214635]
[1773215467740,3.2440374,85.521,85.471,4.00214635]
[1773215467741,2.63209237,85.51,85.471,4.00214635]
[1773215467936,2.63209237,85.52,85.471,4.00214635]
[1773215469342,2.63209237,85.52,85.478,4.00214635]
[1773215470044,2.63209237,85.51,85.478,4.00214635]
[1773215471640,2.62536241,85.51,85.478,4.00214635]
[1773215473450,2.62536241,85.5,85.465,4.00214635]
[1773215474544,2.62536241,85.5,85.475,10.528]
[1773215475247,2.62536241,85.51,85.475,10.528]
[1773215478045,2.62536241,85.51,85.467,4.00214635]
[1773215478250,2.62536241,85.5,85.467,4.00214635]
[1773215478442,5.85085139,85.5,85.456,10.531]
[1773215478746,5.85085139,85.5,85.457,4.00214635]
[1773215479744,2.62536241,85.51,85.461,4.03757551]
[1773215480143,2.62536241,85.5,85.461,4.03757551]
[1773215480544,3.22359662,85.509,85.474,4.03757551]
[1773215485147,26.08979214,85.554,85.46,2.62536241]
[1773215485148,3.1523815,85.499,85.46,14.56757551]
[1773215486646,3.1523815,85.499,85.461,4.03757551]
[1773215489744,3.1523815,85.499,85.463,10.53]
[1773215491046,2.62536241,85.49,85.46,4.03757551]
[1773215491248,2.62536241,85.48,85.441,4.03757551]
[1773215492552,5.79033433,85.48,85.441,4.03757551]
[1773215493450,5.79033433,85.46,85.41,2.62536241]
[1773215493756,5.79033433,85.46,85.411,4.03757551]
[1773215494054,5.79033433,85.46,85.421,4.03757551]
[1773215495350,5.79033433,85.46,85.426,10.534]
[1773215495956,2.62536241,85.45,85.418,4.03757551]
[1773215496149,2.62536241,85.46,85.418,4.03757551]
[1773215496651,2.62536241,85.46,85.421,4.03757551]
[1773215496854,2.62536241,85.47,85.421,4.03757551]
[1773215497152,2.62536241,85.46,85.421,4.03757551]
[1773215497456,2.62536241,85.46,85.422,4.03757551]
[1773215505357,3.18140726,85.459,85.422,4.03757551]
[1773215505563,2.62536241,85.44,85.411,4.00142442]
[1773215510154,21.052,85.495,85.4,2.62536241]
[1773215510155,3.18924366,85.462,85.412,3.78614865]
[1773215510355,2.62536241,85.45,85.412,3.78614865]
[1773215511360,2.62536241,85.45,85.419,10.535]
[1773215512663,2.62536241,85.45,85.42,3.78614865]
[1773215521676,2.62536241,85.44,85.42,3.78614865]
[1773215522065,3.14133306,85.449,85.417,10.535]
[1773215522266,2.62536241,85.45,85.418,3.78614865]
[1773215522767,2.62536241,85.45,85.42,3.78614865]
[1773215528871,3.33344167,85.449,85.417,10.535]
[1773215529070,2.62536241,85.44,85.41,10.536]
[1773215529477,5.95880408,85.44,85.41,10.536]
[1773215529879,5.95880408,85.44,85.416,10.536]
[1773215530076,5.95880408,85.44,85.404,3.78614865]
[1773215530077,3.33344167,85.488,85.431,3.78614865]
[1773215530375,3.33344167,85.488,85.441,3.78614865]
[1773215531488,3.33344167,85.488,85.446,3.78614865]
[1773215532482,3.33344167,85.488,85.447,14.31814865]
[1773215532682,2.62701365,85.48,85.447,3.78614865]
[1773215532988,5.96419571,85.48,85.447,3.78614865]
[1773215534785,3.36914939,85.492,85.451,10.531]
[1773215534996,2.62701365,85.49,85.452,3.78614865]
[1773215535386,3.36914939,85.492,85.455,3.78614865]
[1773215535690,3.36914939,85.503,85.461,3.78614865]
[1773215535990,2.62701365,85.5,85.461,3.78614865]
[1773215537293,5.99197711,85.5,85.461,3.78614865]
[1773215537487,3.36496346,85.499,85.461,3.78614865]
[1773215537687,2.62701365,85.49,85.451,3.78614865]
[1773215537887,3.36496346,85.49,85.451,3.78614865]
[1773215538089,2.62701365,85.49,85.451,3.78614865]
[1773215539889,10.526,85.496,85.451,3.78614865]
[1773215540084,3.3628343,85.495,85.451,3.78614865]
[1773215540286,2.62701365,85.49,85.451,3.78614865]
[1773215540593,3.36429254,85.489,85.451,3.78614865]
[1773215540789,3.36429254,85.486,85.44,2.62701365]
[1773215540994,2.62701365,85.48,85.439,3.75417138]
[1773215541197,2.62701365,85.48,85.44,2.62701365]
[1773215541584,2.62701365,85.48,85.44,6.38118503]
[1773215541787,2.62701365,85.48,85.441,3.75417138]
[1773215542190,3.36429254,85.479,85.436,10.533]
[1773215542386,3.36429254,85.479,85.437,3.75417138]
[1773215542584,3.36429254,85.479,85.438,10.533]
[1773215542795,3.36429254,85.479,85.439,3.75417138]
[1773215546798,3.36429254,85.479,85.44,14.28717138]
[1773215547099,3.36429254,85.479,85.441,3.75417138]
[1773215548600,2.62701365,85.47,85.441,3.75417138]
[1773215548894,3.38272823,85.469,85.431,10.534]
[1773215549495,3.38272823,85.469,85.432,4.0394549]
[1773215550502,3.38272823,85.469,85.435,10.533]
[1773215550703,2.62701365,85.47,85.436,4.0394549]
[1773215550904,2.62701365,85.48,85.436,4.0394549]
[1773215551099,3.35502487,85.493,85.446,4.0394549]
[1773215551300,2.62701365,85.48,85.446,4.0394549]
[1773215552005,2.62701365,85.49,85.448,4.0394549]
[1773215552505,2.62701365,85.48,85.448,4.0394549]
[1773215553806,2.62701365,85.47,85.431,4.0394549]
[1773215554007,3.35177997,85.479,85.432,4.0394549]
[1773215555000,3.35177997,85.479,85.441,4.0394549]
[1773215555305,2.62701365,85.48,85.441,4.0394549]
[1773215556504,2.62701365,85.48,85.443,4.0394549]
[1773215557908,2.62701365,85.48,85.447,3.86821713]
[1773215558610,2.62701365,85.49,85.447,3.86821713]
[1773215559008,2.62701365,85.49,85.448,10.532]
[1773215559209,2.62701365,85.48,85.448,14.40021713]
[1773215560612,2.62701365,85.48,85.448,3.86821713]
[1773215560911,3.41180239,85.479,85.44,10.533]
[1773215564214,3.41180239,85.479,85.44,14.40121713]
[1773215564711,3.41180239,85.479,85.441,3.86821713]
[1773215565516,3.41180239,85.479,85.408,11.78]
[1773215565517,6.08939894,85.49,85.448,3.86821713]
[1773215566210,3.46238529,85.489,85.448,3.86821713]
[1773215566407,2.62701365,85.48,85.448,3.86821713]
[1773215568625,3.46238529,85.489,85.449,3.86821713]
[1773215570317,3.46238529,85.489,85.45,10.531]
[1773215570520,3.46238529,85.489,85.451,3.8189104]
[1773215573919,3.46238529,85.489,85.453,10.531]
[1773215574121,3.46238529,85.489,85.453,14.3499104]
[1773215575123,3.46238529,85.489,85.454,3.8189104]
[1773215575912,2.62701365,85.49,85.454,3.8189104]
[1773215576824,2.62701365,85.49,85.456,3.8189104]
[1773215578025,3.43893229,85.489,85.447,3.8189104]
[1773215579329,10.527,85.488,85.449,3.8189104]
[1773215579824,2.62701365,85.48,85.449,3.8189104]
[1773215586933,10.527,85.488,85.449,3.8189104]
[1773215587233,3.43541567,85.5,85.449,3.8189104]
[1773215587436,11.7,85.599,85.44,2.62701365]
[1773215587437,2.62701365,85.52,85.482,3.8189104]
[1773215587629,3.43541567,85.518,85.482,3.8189104]
[1773215587932,8.94980646,85.517,85.482,3.8189104]
[1773215588238,2.62701365,85.51,85.461,3.8189104]
[1773215589437,2.62701365,85.51,85.47,3.8189104]
[1773215589637,3.43541567,85.515,85.47,3.8189104]
[1773215590038,3.43541567,85.515,85.471,3.8189104]
[1773215590338,2.62701365,85.51,85.471,3.8189104]
[1773215590538,3.45026589,85.509,85.471,3.8189104]
[1773215591040,2.62701365,85.48,85.441,3.8189104]
[1773215591536,3.45026589,85.476,85.43,2.62701365]
[1773215591738,3.45026589,85.469,85.426,3.8189104]
[1773215591938,2.62701365,85.47,85.426,3.8189104]
[1773215592137,2.62701365,85.48,85.43,2.62701365]
[1773215592338,2.62701365,85.48,85.431,3.8189104]
[1773215593240,10.528,85.478,85.432,3.8189104]
[1773215593539,2.62798768,85.47,85.432,3.8189104]
[1773215594443,2.62798768,85.47,85.433,3.8189104]
[1773215594643,10.528,85.478,85.433,3.8189104]
[1773215597044,2.62798768,85.46,85.423,10.535]
[1773215597244,2.62798768,85.46,85.424,3.8189104]
[1773215597444,3.45818802,85.469,85.424,3.8189104]
[1773215597650,10.53,85.464,85.426,3.8189104]
[1773215599647,2.62798768,85.46,85.426,3.8189104]
[1773215599845,3.45158065,85.459,85.411,3.84611022]
[1773215600254,3.45158065,85.466,85.42,2.62798768]
[1773215600449,2.62798768,85.46,85.419,3.84611022]
[1773215601055,6.08872986,85.45,85.416,10.536]
[1773215605056,6.08872986,85.45,85.406,3.84611022]
[1773215606354,6.08872986,85.45,85.41,3.84611022]
[1773215607356,6.08872986,85.45,85.411,14.38211022]
[1773215607761,6.08872986,85.45,85.412,3.84611022]
[1773215608455,3.43373322,85.449,85.412,3.84611022]
[1773215610656,2.62798768,85.43,85.395,14.38411022]
[1773215610854,3.40117974,85.439,85.396,3.84611022]
[1773215611564,2.62798768,85.44,85.396,3.84611022]
[1773215611859,11.8,85.464,85.377,11.8]
[1773215611860,10.532,85.449,85.401,14.38311022]
[1773215612060,10.532,85.449,85.402,3.84611022]
[1773215612463,6.02916742,85.45,85.404,3.84611022]
[1773215613365,6.02916742,85.45,85.407,10.537]
[1773215613665,6.02916742,85.45,85.408,3.84611022]
[1773215616365,2.62798768,85.44,85.408,3.84611022]
[1773215619568,6.11301271,85.44,85.408,3.84611022]
[1773215621368,3.48268211,85.439,85.408,3.84611022]
[1773215622358,10.533,85.438,85.398,3.81876479]
[1773215622559,3.48353775,85.437,85.398,3.81876479]
[1773215628070,10.533,85.438,85.398,3.81876479]
[1773215628369,3.47593312,85.437,85.398,3.81876479]
[1773215628865,10.534,85.431,85.398,3.81876479]
[1773215629071,2.62798768,85.43,85.398,3.81876479]
[1773215629869,3.47593312,85.437,85.398,3.81876479]
[1773215630372,3.49041549,85.433,85.398,3.81876479]
[1773215630577,3.49041549,85.429,85.385,3.78420851]
[1773215631370,14.02441549,85.429,85.385,3.78420851]
[1773215638571,3.49089207,85.428,85.385,3.78420851]
[1773215640184,3.49089207,85.428,85.39,2.62798768]
[1773215640378,3.49089207,85.428,85.391,3.78420851]
[1773215641078,3.49089207,85.428,85.39,2.62798768]
[1773215641079,2.62798768,85.42,85.383,10.54]
[1773215641282,3.49054201,85.419,85.381,3.78420851]
[1773215643683,3.56403512,85.428,85.381,3.78420851]
[1773215644081,2.62798768,85.42,85.381,3.78420851]
[1773215645382,2.62798768,85.42,85.383,3.78420851]
[1773215645582,3.55120922,85.449,85.401,3.78420851]
[1773215646183,3.55120922,85.449,85.402,3.78420851]
[1773215646184,10.532,85.448,85.402,3.78420851]
[1773215646381,14.11230295,85.448,85.402,3.78420851]
[1773215646581,3.58030295,85.447,85.402,3.78420851]
[1773215648092,3.58030295,85.447,85.404,3.78420851]
[1773215651189,2.62798768,85.44,85.404,3.78420851]
[1773215652990,3.58030295,85.447,85.406,3.78420851]
[1773215656091,2.62960288,85.44,85.406,3.78420851]
[1773215656388,10.533,85.438,85.406,3.78420851]
[1773215656591,3.55566948,85.419,85.381,3.78420851]
[1773215657392,3.55566948,85.419,85.383,3.78420851]
[1773215658395,3.55566948,85.419,85.384,14.32420851]
[1773215660298,3.55566948,85.419,85.385,4.0141104]
[1773215661497,3.55566948,85.419,85.386,10.539]
[1773215661703,3.55566948,85.419,85.387,4.0141104]
[1773215661898,3.55566948,85.419,85.369,11.8]
[1773215661899,3.50811015,85.429,85.391,4.0141104]
[1773215668606,2.62960288,85.42,85.391,4.0141104]
[1773215669707,3.50811015,85.429,85.391,4.0141104]
[1773215669904,3.50811015,85.429,85.384,10.54]